[Event "1st Serbian League 2022"]
[Site "Vrnjacka Banja"]
[Date "2022.09.24"]
[Round "5.20"]
[White "Gokerkan, Cem Kaan"]
[Black "Puranik, Abhimanyu"]
[Result "1/2-1/2"]
[ECO "D79"]
[WhiteElo "2465"]
[BlackElo "2603"]
[Annotator "TA"]
[PlyCount "40"]
[EventDate "2022.09.20"]
[EventType "team-tourn"]
[EventCountry "SRB"]
[SourceTitle "playchess.com"]
[Source "ChessBase"]
[SourceQuality "1"]
[TimeControl "40/5400+30:1800+30"]

{[%evp 24,40,29,8,40,35,25,0,6,-5,8,13,16,11,16,0,0,0,0]} 1. Nf3 {[%emt 0:01:11]} d5 {[%emt 0:00:36]} 2. g3 {[%emt 0:02:31]} g6 {[%emt 0:01:45]} 3. Bg2 {[%emt 0:00:26]} Bg7 {[%emt 0:00:04]} 4. d4 {[%emt 0:00:58]} Nf6 {[%emt 0:00:05]} 5. O-O {[%emt 0:00:23]} O-O {[%emt 0:00:04]} 6. c4 {[%emt 0:01:33]} c6 {[%emt 0:00:21]} 7. cxd5 {[%emt 0:00:51]} cxd5 {[%emt 0:00:07]} 8. Nc3 {[%emt 0:00:40]} Nc6 {[%emt 0:00:18]} 9. Ne5 {[%emt 0:01:06]} e6 {[%emt 0:00:04]} 10. Nxc6 {[%emt 0:00:29]} bxc6 {[%emt 0:00:03]} 11. Na4 {[%emt 0:00:28]} Nd7 {[%emt 0:02:44]} 12. Bf4 {[%emt 0:00:39]} Ba6 {[%emt 0:04:10] The main line 12...Ba6 scores better than 12...e5.} 13. Rc1 {[%emt 0:00:58]} Rc8 {[%emt 0:05:51] D79: Fianchetto Grünfeld: Symmetrical Variation (6 0-0 c6 7 cxd5 cxd5).} 14. Qd2 {[%emt 0:13:00]} Re8 {[%emt 0:05:11] [#]} 15. Bh3 $146 {[%emt 0:20:53]} ({Predecessor:} 15. Rfe1 Bb5 16. Nc3 Qb6 17. Red1 a5 18. Bd6 a4 19. e3 Qa6 20. Nxb5 Qxb5 21. Qb4 Qxb4 22. Bxb4 {½-½ (47) Margl,R (2293)-Antal,G (2562) Ajka 2021}) 15... Bf8 {[%emt 0:11:49] The position is equal.} 16. Bg5 {[%emt 0:11:38]} f6 {[%emt 0:13:35]} 17. Be3 {[%emt 0:02:00]} Bb5 {[%emt 0:02:19]} 18. Nc3 {[%emt 0:01:20]} Ba6 {[%emt 0:02:02]} 19. Na4 {[%emt 0:01:40]} Bb5 {[%emt 0:08:50]} 20. Nc3 {[%emt 0:00:08]} Ba6 {[%emt 0:00:03] Weighted Error Value: White=0.08 (flawless) /Black=0.08 (flawless)} 1/2-1/2

[Event "1st Serbian League 2022"]
[Site "Vrnjacka Banja"]
[Date "2022.09.24"]
[Round "5.21"]
[White "Gagunashvili, Merab"]
[Black "Arsovic, Goran"]
[Result "1-0"]
[ECO "E62"]
[WhiteElo "2552"]
[BlackElo "2362"]
[Annotator "TA"]
[PlyCount "87"]
[EventDate "2022.09.20"]
[EventType "team-tourn"]
[EventCountry "SRB"]
[SourceTitle "playchess.com"]
[Source "ChessBase"]
[SourceQuality "1"]
[TimeControl "40/5400+30:1800+30"]

{[%evp 19,87,55,58,56,46,46,40,55,50,52,56,47,47,41,41,41,44,44,44,30,38,38,51,21,46,48,44,35,61,57,64,59,70,66,61,0,0,0,5,0,10,4,9,8,8,0,0,0,14,0,106,106,85,0,464,457,372,321,324,325,312,297,310,306,231,137,232,237,190,137]} 1. d4 {[%emt 0:00:05]} Nf6 {[%emt 0:00:22]} 2. c4 {[%emt 0:00:05]} g6 {[%emt 0:00:13]} 3. g3 {[%emt 0:00:05]} Bg7 {[%emt 0:00:49]} 4. Bg2 {[%emt 0:00:04]} d6 {[%emt 0:00:59]} 5. Nf3 {[%emt 0:00:37]} O-O {[%emt 0:00:45]} 6. O-O {[%emt 0:00:10]} Nc6 {[%emt 0:06:14]} 7. Nc3 {[%emt 0:00:09]} e5 {[%emt 0:00:46]} 8. dxe5 {[%emt 0:00:48]} dxe5 {[%emt 0:00:12]} 9. Bg5 {[%emt 0:00:04]} h6 {[%emt 0:04:54]} 10. Qxd8 {[%emt 0:01:10]} Rxd8 {[%emt 0:00:18]} 11. Bxf6 {[%emt 0:00:12] E62: King's Indian: Fianchetto: 6...c6 and Panno Variation (6...Nc6) without ...a6.} Bxf6 {[%emt 0:00:10][%cal Bg7f6,Bf6e7,Be7c5,Bc5d4][%mdl 32]} 12. Nd5 {[%emt 0:00:06]} Kg7 {[%emt 0:00:11]} 13. Nxc7 {[%emt 0:00:57] White is slightly better.} Rb8 {[%emt 0:00:08]} 14. e4 {[%emt 0:01:49]} Be7 {[%emt 0:02:40]} 15. Rfd1 {[%emt 0:09:35]} Be6 {[%emt 0:05:58] [#]} 16. Rxd8 $146 {[%emt 0:05:20]} ({Predecessor:} 16. Nxe6+ fxe6 17. Ne1 g5 18. Bh3 Kf6 19. Bg4 Bc5 20. Rxd8 Rxd8 21. Rd1 {½-½ (21) Volokitin,A (2677)-Shevchenko,K (2655) Warsaw 2021}) 16... Rxd8 {[%emt 0:00:23]} 17. Nd5 {[%emt 0:00:14]} Bc5 {[%emt 0:02:02]} 18. Ne1 {[%emt 0:07:08] Pair of Knights!} a5 {[%emt 0:05:33]} 19. Rc1 {[%emt 0:05:00]} Bd4 {[%emt 0:14:16]} 20. Rb1 {[%emt 0:16:11]} Rc8 {[%emt 0:20:43]} 21. Bf1 {[%emt 0:01:50]} g5 {[%emt 0:13:23]} 22. Nc2 {[%emt 0:04:42]} Bc5 {[%emt 0:00:32]} 23. Nce3 {[%emt 0:00:47]} Kg6 {[%emt 0:04:32]} 24. Be2 {[%emt 0:05:12]} h5 {[%emt 0:01:35]} 25. a3 {[%emt 0:05:10]} a4 {[%emt 0:04:06]} 26. Bd1 {[%emt 0:01:00]} Ra8 {[%emt 0:01:40]} 27. Nc3 {[%emt 0:17:34]} (27. Nc7 $14 Ra7 28. Nb5 (28. Nxe6 fxe6 29. Ng2 Bd4 $14)) 27... Bxe3 {[%emt 0:01:52]} 28. fxe3 {[%emt 0:00:03]} Na5 $1 {[%emt 0:02:02]} 29. Nxa4 {[%emt 0:01:44]} Nxc4 {[%emt 0:00:30]} 30. Nc5 {[%emt 0:02:26]} Bg4 {[%emt 0:00:29] Inhibits Be2.} 31. Bxg4 {[%emt 0:06:33]} hxg4 {[%emt 0:00:04]} 32. Nxb7 $11 {[%emt 0:02:43][%mdl 4096] Endgame KRN-KRN} Rb8 {[%emt 0:00:22]} 33. Rc1 {[%emt 0:03:42]} Nd2 {[%emt 0:02:54]} 34. Rc6+ {[%emt 0:00:35]} Kg7 {[%emt 0:00:27]} (34... f6 $11 {keeps the balance.} 35. Rc7 Nf3+ 36. Kh1 Rh8) 35. Rc7 $16 {[%emt 0:01:43]} Nf3+ {[%emt 0:02:36] [#]} 36. Kf1 {[%emt 0:00:06]} (36. Kh1 $1 $16) 36... Nxh2+ $2 {[%emt 0:00:35][%mdl 8192]} (36... Rh8 $1 $11) 37. Ke2 $18 {[%emt 0:00:12]} Nf3 {[%emt 0:00:14]} 38. a4 {[%emt 0:01:01]} Rh8 {[%emt 0:01:08]} 39. Kd3 {[%emt 0:01:08]} Rh2 {[%emt 0:00:39]} 40. Kc3 {[%emt 0:00:28]} Re2 {[%emt 0:00:39]} 41. Nd6 {[%emt 0:30:44]} Rxe3+ {[%emt 0:30:43]} 42. Kc4 {[%emt 0:00:00]} (42. Kb4 $18 {Black must now prevent Nf5+.} Nd4 43. Rc3 (43. Nxf7 Kf6 $11) (43. Rxf7+ Kg6 $16)) 42... Nd2+ {[%emt 0:00:00]} (42... Nd4 $16) 43. Kd5 {[%emt 0:00:00] [#] aiming for Nf5+.} Rd3+ {[%emt 0:00:00]} 44. Kc6 {[%emt 0:00:00] Weighted Error Value: White=0.10 (very precise) /Black=0.25 (precise)} 1-0

[Event "1st Serbian League 2022"]
[Site "Vrnjacka Banja"]
[Date "2022.09.24"]
[Round "5.22"]
[White "Ristic, Nenad"]
[Black "Savic, Miodrag R"]
[Result "0-1"]
[ECO "B01"]
[WhiteElo "2267"]
[BlackElo "2406"]
[Annotator "TA"]
[PlyCount "94"]
[EventDate "2022.09.20"]
[EventType "team-tourn"]
[EventCountry "SRB"]
[SourceTitle "playchess.com"]
[Source "ChessBase"]
[SourceQuality "1"]
[TimeControl "40/5400+30:1800+30"]

{[%evp 13,94,43,52,53,54,46,71,52,57,54,49,40,43,40,43,44,46,41,55,26,31,24,30,20,17,17,34,29,36,31,43,43,47,45,47,36,52,59,43,53,49,15,37,30,21,0,0,0,0,-31,-21,-10,-25,-49,-11,-161,-136,-162,-75,-108,-103,-123,-29,-47,-49,-47,-46,-109,-106,-159,-150,-154,-154,-198,-191,-213,-213,-297,-297,-297,-297,-406,-355]} 1. e4 {[%emt 0:00:05]} d5 {[%emt 0:00:13]} 2. exd5 {[%emt 0:00:08]} Qxd5 {[%emt 0:00:14]} 3. Nc3 {[%emt 0:00:10]} Qa5 {[%emt 0:00:40]} 4. d4 {[%emt 0:00:14]} Nf6 {[%emt 0:00:42]} 5. Nf3 {[%emt 0:00:18]} c6 {[%emt 0:00:58]} 6. Bc4 {[%emt 0:00:36]} Bg4 {[%emt 0:00:53]} 7. h3 {[%emt 0:02:31]} Qh5 {[%emt 0:02:52]} 8. Be2 {[%emt 0:04:55] B01: Scandinavian Defence.} e6 {[%emt 0:00:22]} 9. O-O {[%emt 0:11:48]} Bxf3 {[%emt 0:00:31]} 10. Bxf3 {[%emt 0:00:05] White is better.} Qa5 {[%emt 0:00:13]} 11. Re1 {[%emt 0:01:19]} Be7 {[%emt 0:01:01]} 12. Ne4 {[%emt 0:06:19]} Nbd7 {[%emt 0:04:32]} 13. c3 {[%emt 0:02:16]} Qc7 {[%emt 0:06:02]} 14. g3 {[%emt 0:04:38]} Nxe4 {[%emt 0:01:24]} 15. Bxe4 {[%emt 0:00:37] [#]} O-O $146 {[%emt 0:01:52]} ({Predecessor:} 15... Nf6 16. Bc2 Bd6 17. Kg2 O-O-O 18. b4 Nd5 19. Qd3 c5 20. bxc5 Bxc5 21. dxc5 Nf4+ 22. Bxf4 Rxd3 23. Bxc7 Rxc3 {1-0 (58) Emdin,M (1946)-Vialichka,K (1832) St Constantin and Helena 2010}) 16. Qc2 {[%emt 0:03:13]} h6 {[%emt 0:08:30]} 17. Qe2 Nf6 {[%emt 1:08:01]} 18. Bc2 {[%emt 1:00:18]} Rfd8 {[%emt 0:00:30]} 19. Qf3 {[%emt 0:00:30]} Qa5 {[%emt 0:00:30]} 20. Re5 {[%emt 0:00:30]} Rd5 {[%emt 0:00:30]} 21. Bf4 {[%emt 0:00:30]} Rad8 {[%emt 0:00:30]} 22. b4 Qa3 {[%emt 0:00:30]} 23. Bc1 {[%emt 0:01:00]} Qa6 {[%emt 0:00:30]} 24. Re1 {[%emt 0:00:30]} Qb6 {[%emt 0:00:00]} 25. g4 {[%emt 0:00:00]} a5 {[%emt 0:00:00]} 26. a3 {[%emt 0:00:00]} Ra8 {[%emt 0:00:00][%cal Ra5b4,Bd8a8,Ba8a3,Ba3a2,Ba2d2][%mdl 32]} 27. Rb1 {[%emt 0:00:00]} axb4 {[%emt 0:00:00]} 28. axb4 {[%emt 0:00:00]} Qd8 {[%emt 0:02:30]} 29. Bb3 {[%emt 0:02:30]} Rd7 {[%emt 0:00:30]} 30. Bd2 {[%emt 0:00:00]} Nd5 {[%emt 0:00:30]} 31. Qe4 {[%emt 0:01:00]} Ra3 {[%emt 0:00:30]} 32. Bc2 {[%emt 0:00:00] [#] Threatening mate with Qh7+.} g6 {[%emt 0:00:00]} 33. Rb3 {[%emt 0:00:00]} Ra2 {[%emt 0:00:00][%cal Od5b4]} (33... Nxb4 $5 34. Bxh6 (34. Rxa3 Nxc2 35. Qxc2 Bxa3 $15) (34. cxb4 Rxb3 35. Bxb3 Rxd4 $17) (34. Rxb4 $2 Bxb4 35. Qd3 Bf8 $19) 34... Nxc2 35. Qxc2 Rxb3 36. Qxb3 b5 $15) 34. Qd3 {[%emt 0:00:00]} (34. Bxh6 $11 {and White stays safe.} Bg5 35. Bxg5 Qxg5 36. Bb1) 34... Bg5 {[%emt 0:00:00]} 35. Bxg5 {[%emt 0:00:00]} Qxg5 {[%emt 0:00:00]} (35... hxg5 $19 {is more deadly.} 36. Bb1 Ra1) 36. Bb1 $17 {[%emt 0:00:21]} Rd2 {[%emt 0:00:00]} 37. Qf3 {[%emt 0:00:06]} Qf4 {[%emt 0:00:00]} ({Black should play} 37... h5 $17 {White must now prevent ...hxg4.} 38. b5 hxg4 39. hxg4 Nf6 40. bxc6 bxc6) 38. Be4 {[%emt 0:00:34]} Qxf3 $40 {[%emt 0:00:00][%mdl 128] Black attacks.} 39. Bxf3 {[%emt 0:00:01]} Nf4 {[%emt 0:00:00]} 40. Bg2 {[%emt 0:00:44]} (40. Kh2 $15) 40... g5 {[%emt 0:00:00]} 41. Bf1 {[%emt 0:30:06]} (41. Re3 $142) 41... Rc2 {[%emt 0:29:08]} 42. b5 {[%emt 0:03:38]} cxb5 {[%emt 0:01:25] Black is much more active.} 43. Reb1 {[%emt 0:00:00]} Rc7 {[%emt 0:00:30]} 44. Rxb5 {[%emt 0:00:00]} R7xc3 {[%emt 0:04:14]} 45. Rxb7 {[%emt 0:00:00]} Rf3 {[%emt 0:00:58]} ({Weaker is} 45... Nxh3+ 46. Bxh3 Rxh3 47. d5 $19) 46. Ra7 {[%emt 0:00:00]} Rcxf2 {[%emt 0:00:00] And now ...Rd2 would win.} 47. Rd1 {[%emt 0:00:00]} Rb2 {[%emt 0:00:00] Weighted Error Value: White=0.21 (precise) /Black=0.10 (very precise)} 0-1

[Event "1st Serbian League 2022"]
[Site "Vrnjacka Banja"]
[Date "2022.09.24"]
[Round "5.23"]
[White "Radovanovic, Mihajlo"]
[Black "Rajkovic, Dusan"]
[Result "1-0"]
[ECO "A07"]
[WhiteElo "2438"]
[BlackElo "2246"]
[Annotator "TA"]
[PlyCount "125"]
[EventDate "2022.09.20"]
[EventType "team-tourn"]
[EventCountry "SRB"]
[SourceTitle "playchess.com"]
[Source "ChessBase"]
[SourceQuality "1"]
[TimeControl "40/5400+30:1800+30"]

{[%evp 9,125,13,13,10,4,-7,0,-14,-15,-17,-6,-23,0,-21,10,0,0,-6,0,-1,-12,-4,5,-35,-28,-27,-14,-16,-24,-19,15,-16,13,-20,-8,-28,-31,-25,-10,-12,20,0,0,0,16,0,28,0,13,10,22,18,12,14,114,114,115,115,115,115,115,115,162,151,115,108,104,102,139,151,166,168,309,115,115,115,251,96,103,0,107,120,196,163,389,355,368,332,292,267,510,503,485,481,453,446,888,1019,1006,1004,923,846,975,849,946,889,947,851,1387,1258,29951,12841,29939,12851,12840,6099,5081,3100]} 1. g3 {[%emt 0:01:16]} d5 {[%emt 0:03:39]} 2. Nf3 {[%emt 0:00:55]} Nf6 {[%emt 0:00:59]} 3. Bg2 {[%emt 0:00:17]} c6 {[%emt 0:03:39]} 4. O-O {[%emt 0:00:45]} Bg4 {[%emt 0:00:32]} 5. d3 {[%emt 0:00:48]} e6 {[%emt 0:00:10]} 6. Qe1 {[%emt 0:01:00] A07: Réti Opening: New York and Capablanca Systems.} Nbd7 {[%emt 0:05:08]} 7. h3 {[%emt 0:08:25]} Bxf3 {[%emt 0:00:45]} 8. Bxf3 {[%emt 0:00:35] [#] The position is equal.} a5 $146 {[%emt 0:02:01]} (8... Qc7 {is more complex.} 9. e4 Bc5 10. Bf4 e5) ({Predecessor:} 8... h5 9. Bg2 Qc7 10. e4 dxe4 11. dxe4 Bd6 12. f4 e5 13. Nd2 h4 14. Nc4 Bc5+ {1-0 (41) Kramnik,V (2769)-Anand,V (2793) London 2014}) 9. Bg2 {[%emt 0:04:22]} a4 {[%emt 0:03:11]} 10. c3 {[%emt 0:01:17]} Qb6 {[%emt 0:02:19]} 11. Nd2 {[%emt 0:02:35][%cal Bb1d2,Bd2f3,Bf3h4,Bh4f5][%mdl 32]} Be7 {[%emt 0:09:14]} (11... Bd6 $5 {[%cal Rd6g3]}) 12. e3 {[%emt 0:08:13]} O-O {[%emt 0:05:38]} 13. Qe2 {[%emt 0:01:50]} Qa6 {[%emt 0:00:31]} 14. Re1 {[%emt 0:00:57]} Rfd8 {[%emt 0:07:02]} 15. Bf1 {[%emt 0:04:36]} h6 {[%emt 0:02:53]} 16. Nf3 {[%emt 0:05:05]} e5 {[%emt 0:09:11]} 17. Qc2 {[%emt 0:03:15]} b5 {[%emt 0:02:57]} 18. e4 {[%emt 0:04:41]} dxe4 {[%emt 0:00:32]} 19. dxe4 {[%emt 0:00:13]} Bc5 {[%emt 0:00:07]} 20. Nh4 {[%emt 0:01:51]} Qa7 {[%emt 0:04:32]} 21. Nf5 {[%emt 0:00:57]} Nf8 {[%emt 0:00:29]} 22. Qe2 {[%emt 0:00:58]} Rd7 {[%emt 0:00:37]} 23. Qf3 {[%emt 0:01:02][%cal Of5h6]} N6h7 {[%emt 0:01:00]} 24. h4 {[%emt 0:01:43]} Kh8 {[%emt 0:04:23]} 25. Bh3 {[%emt 0:13:16][%cal Of5h6]} Ne6 {[%emt 0:01:08]} 26. Be3 {[%emt 0:03:06]} Rad8 {[%emt 0:01:12]} 27. Red1 {[%emt 0:02:46]} Nhf8 {[%emt 0:02:00]} 28. Qh5 {[%emt 0:10:50]} Rxd1+ {[%emt 0:01:47]} 29. Rxd1 {[%emt 0:00:02]} Rxd1+ {[%emt 0:00:14]} 30. Qxd1 {[%emt 0:00:07]} Bxe3 {[%emt 0:00:22]} 31. Nxe3 {[%emt 0:00:15]} Qc5 {[%emt 0:00:44]} (31... Qc7 $11) 32. Bxe6 $16 {[%emt 0:00:53]} Nxe6 {[%emt 0:00:11][%mdl 4096] Endgame KQN-KQN} 33. Qd7 {[%emt 0:00:07]} a3 {[%emt 0:05:28]} 34. bxa3 {[%emt 0:00:52]} Qxc3 {[%emt 0:00:07]} 35. Qxf7 {[%emt 0:00:21]} Nd4 {[%emt 0:00:38]} 36. Kg2 {[%emt 0:01:27]} Qxa3 {[%emt 0:00:49]} 37. Qe8+ {[%emt 0:01:01]} (37. Ng4 {seems wilder.} Qd3 38. Qe8+ Kh7 39. Qg6+) 37... Kh7 {[%emt 0:00:01]} 38. Qxe5 {[%emt 0:00:09]} c5 {[%emt 0:00:09]} 39. Qd5 {[%emt 0:06:17]} Qa7 {[%emt 0:03:47]} 40. e5 {[%emt 0:01:59]} Qe7 {[%emt 0:00:49]} (40... Kh8 {might work better.} 41. Nd1 b4) 41. Qe4+ $2 {[%emt 0:32:50]} (41. f4 $18 {is more deadly.}) 41... Kg8 {[%emt 0:31:40]} 42. Nd5 {[%emt 0:01:49]} Qe6 {[%emt 0:00:44]} (42... Qf7 $16 43. a3 Qd7) 43. Nf4 $2 {[%emt 0:01:00]} (43. Nc7 $1 $18 {[%cal Rc7e6]} Qd7 44. e6 $1) 43... Qc6 {[%emt 0:00:39]} 44. Nd5 {[%emt 0:00:00]} ({White has to play} 44. Qxc6 $16 {Qe8+ would kill now.} Nxc6 45. Kf3) 44... Kh8 {[%emt 0:00:00] [#]} (44... Qe6 $11 {remains equal.}) 45. h5 $1 {[%emt 0:00:00] White now steadily converts the win.} Ne6 {[%emt 0:00:00] [#]} (45... b4 $16) 46. Nf6 $1 {[%emt 0:00:00][%mdl 512]} Qxe4+ {[%emt 0:00:00]} (46... Nd8 {was worth a try.} 47. Qxc6 Nxc6) (46... Nd4 47. Qxc6) 47. Nxe4 $18 {[%emt 0:00:00] KN-KN} c4 {[%emt 0:00:00]} 48. Kf3 {[%emt 0:00:00]} b4 {[%emt 0:00:00]} 49. Ke3 {[%emt 0:00:00]} b3 $2 {[%emt 0:00:00]} (49... c3 50. g4 (50. Kd3 Nd4 $18) 50... Kg8) 50. a4 {[%emt 0:00:00][%cal Ba2a4,Ba4a5][%mdl 32]} b2 {[%emt 0:00:00]} 51. Nc3 {[%emt 0:00:00]} Nc5 {[%emt 0:00:00][%cal Oc5a4] [#]} 52. a5 {[%emt 0:00:00] And now f4 would win.} Kg8 {[%emt 0:00:00]} (52... Kh7 $142 53. Ke2 g6) 53. f4 {[%emt 0:00:00][%cal Bf2f4,Bf4f5,Bf5f6,Bf6g7][%mdl 32]} ({Weaker is} 53. Kd4 Nb3+ 54. Kxc4 Nxa5+ 55. Kd3 Nc6 $16) 53... Kf7 {[%emt 0:00:00]} 54. f5 {[%emt 0:00:00]} Ke7 {[%emt 0:00:00]} 55. g4 {[%emt 0:00:00]} ({Not} 55. Kd4 Nb3+ 56. Kd5 (56. Kxc4 Nxa5+ 57. Kd4 Nc6+ 58. Kd5 Nb4+ 59. Ke4 Nc2 $11) 56... Nxa5 $11) 55... Ke8 {[%emt 0:00:00]} 56. Nb1 {[%emt 0:00:00]} Ke7 {[%emt 0:00:00]} 57. Ke2 {[%emt 0:00:00]} Kd7 {[%emt 0:00:00]} 58. g5 {[%emt 0:00:00] Threatens to win with f6.} hxg5 {[%emt 0:00:00]} 59. f6 {[%emt 0:00:00]} Ke6 {[%emt 0:03:43]} 60. fxg7 {[%emt 0:00:00]} Kf7 {[%emt 0:00:08]} 61. h6 {[%emt 0:00:00] White wants to mate with Kf3.} Kg8 {[%emt 0:06:11]} 62. Kf1 {[%emt 0:00:14]} (62. Kf3 $142 Kh7 63. Kg4) 62... Kh7 {[%emt 0:00:32]} 63. e6 {[%emt 0:00:26] Weighted Error Value: White=0.19 (very precise) /Black=0.48} 1-0

[Event "1st Serbian League 2022"]
[Site "Vrnjacka Banja"]
[Date "2022.09.24"]
[Round "5.24"]
[White "Rajkovic, Mladen"]
[Black "Lukovic, Vladimir"]
[Result "1/2-1/2"]
[ECO "C91"]
[WhiteElo "2335"]
[BlackElo "2419"]
[Annotator "TA"]
[PlyCount "48"]
[EventDate "2022.09.20"]
[EventType "team-tourn"]
[EventCountry "SRB"]
[SourceTitle "playchess.com"]
[Source "ChessBase"]
[SourceQuality "1"]
[TimeControl "40/5400+30:1800+30"]

{[%evp 18,48,14,7,43,29,33,31,34,31,37,29,40,37,35,35,35,0,0,0,0,-2,-10,-4,0,0,6,0,0,0,0,0,7]} 1. e4 {[%emt 0:07:43]} e5 {[%emt 0:00:34]} 2. Nf3 {[%emt 0:00:09]} Nc6 {[%emt 0:00:33]} 3. Bb5 {[%emt 0:00:10]} a6 {[%emt 0:00:46]} 4. Ba4 {[%emt 0:00:07]} Nf6 {[%emt 0:00:43]} 5. O-O {[%emt 0:00:09]} Be7 {[%emt 0:00:38]} 6. Re1 {[%emt 0:00:12]} b5 {[%emt 0:00:47]} 7. Bb3 {[%emt 0:00:08]} d6 {[%emt 0:00:21]} 8. c3 {[%emt 0:00:13]} O-O {[%emt 0:00:53]} 9. d4 {[%emt 0:00:31]} Bg4 {[%emt 0:04:25]} 10. Be3 {[%emt 0:00:24]} Bd7 {[%emt 0:00:57] C91: Closed Ruy Lopez: 7...d6 8 c3 0-0 9 d4.} 11. Nbd2 {[%emt 0:00:55][%cal Bb1d2,Bd2f1,Bf1e3,Be3d5][%mdl 32]} Ng4 {[%emt 0:03:33]} 12. Nf1 {[%emt 0:01:18]} Nxe3 {[%emt 0:00:57] White is slightly better.} 13. Nxe3 {[%emt 0:00:12]} Bf6 {[%emt 0:03:46]} 14. Nd5 {[%emt 0:01:33]} Rb8 {[%emt 0:10:06]} 15. h3 {[%emt 0:03:28]} g6 {[%emt 0:03:04]} 16. Nxf6+ {[%emt 0:03:02]} Qxf6 {[%emt 0:00:09]} 17. dxe5 {[%emt 0:01:15]} Nxe5 {[%emt 0:00:19] The position is equal.} 18. Nxe5 {[%emt 0:00:29]} Qxe5 {[%emt 0:00:13] [#]} 19. Qd5 $146 {[%emt 0:02:01]} ({Predecessor:} 19. Qd2 Rbe8 20. Rad1 Bc6 21. Bd5 Bxd5 22. Qxd5 Qxd5 23. exd5 g5 24. g3 f5 25. Kg2 {½-½ (43) Postny,E (2661)-Harikrishna,P (2668) Sabadell 2008}) 19... Qxd5 {[%emt 0:02:57]} 20. Bxd5 {[%emt 0:00:08]} Be6 {[%emt 0:01:30]} 21. Rad1 {[%emt 0:00:23]} Bxd5 {[%emt 0:01:11]} 22. exd5 {[%emt 0:01:02]} Rfe8 {[%emt 0:00:26]} 23. Kf1 {[%emt 0:00:49]} Kf8 {[%emt 0:01:07]} 24. f3 {[%emt 0:02:38]} Re7 {[%emt 0:01:44] Weighted Error Value: White=0.06 (flawless) /Black=0.05 (flawless)} 1/2-1/2

[Event "1st Serbian League 2022"]
[Site "Vrnjacka Banja"]
[Date "2022.09.24"]
[Round "5.25"]
[White "Risteski, Emil"]
[Black "Krstulovic, Alex"]
[Result "*"]
[WhiteElo "2364"]
[BlackElo "2411"]
[Annotator "TA"]
[PlyCount "26"]
[EventDate "2022.09.20"]
[EventType "team-tourn"]
[EventCountry "SRB"]
[SourceTitle "playchess.com"]
[Source "ChessBase"]
[SourceQuality "1"]
[TimeControl "40/5400+30:1800+30"]

{[%evp 9,13,28,25,18,14,15]} 1. e4 {[%emt 0:00:14]} c6 {[%emt 0:00:07]} 2. d4 {[%emt 0:00:19]} d5 {[%emt 0:00:08]} 3. e5 {[%emt 0:00:05]} c5 {[%emt 0:00:06]} 4. dxc5 {[%emt 0:00:14]} e6 {[%emt 0:00:09]} 5. Nf3 {[%emt 0:00:09]} Bxc5 {[%emt 0:00:09]} 6. Bd3 {[%emt 0:00:11] B12: Caro-Kann: Advance Variation.} f6 {[%emt 0:00:44] 6...Ne7 is becoming the main line.} 7. O-O {[%emt 0:07:01] [#] An uneventful encounter.} {Predecessor:} Nc6 $146 8. Re1 fxe5 9. Nxe5 Nf6 10. Nxc6 bxc6 11. Nd2 O-O 12. Nf3 e5 13. Rxe5 Bg4 {½-½ (32) Golubev,M (2461)-Urazayev,A (2438) Chess.com INT 2022} *